[Event "Israeli Team U18-ch 2022"]
[Site "Be'er Ya'akov"]
[Date "2022.08.16"]
[Round "6.7"]
[White "Milikow, Elie"]
[Black "Vagman, Roy"]
[Result "1-0"]
[ECO "B56"]
[WhiteElo "2433"]
[BlackElo "2180"]
[Annotator "TA"]
[PlyCount "91"]
[EventDate "2022.08.14"]
[EventCountry "ISR"]
[SourceTitle "playchess.com"]
[Source "ChessBase"]
[SourceQuality "1"]
[TimeControl "3000+10"]

{[%evp 19,91,22,32,39,38,7,22,11,9,-19,-17,-20,0,0,0,0,0,0,0,0,6,0,0,-20,-18,-19,-21,-14,0,0,0,-14,-14,-14,-14,-22,-8,-16,0,0,0,-45,-45,-49,-28,-35,210,22,36,4,58,58,325,300,387,392,558,588,5310,5298,3562,3095,2216,2233,2198,2197,5741,3322,29987,29988,29989,29990,29990,29991]} 1. e4 {[%emt 0:00:04]} c5 {[%emt 0:00:09]} 2. Nf3 {[%emt 0:00:06][%cal Bg1f3,Bf3d4,Bd4b3,Bb3d2][%mdl 32]} d6 {[%emt 0:00:04]} 3. d4 {[%emt 0:00:08]} cxd4 {[%emt 0:00:07]} 4. Nxd4 {[%emt 0:00:06]} Nf6 {[%emt 0:00:07]} 5. Nc3 {[%emt 0:00:14]} Nc6 {[%emt 0:00:06]} 6. f3 {[%emt 0:00:11]} e5 {[%emt 0:00:05]} 7. Nb3 {[%emt 0:00:15]} Be7 {[%emt 0:00:06]} 8. Be3 {[%emt 0:00:17]} Be6 {[%emt 0:00:07]} 9. Nd5 {[%emt 0:00:17]} Bxd5 {[%emt 0:00:12]} 10. exd5 {[%emt 0:00:13]} Nb4 {[%emt 0:00:10] 10...Nb4 is better than 10...Nb8.} 11. c4 $1 {[%emt 0:01:15] B56: Classical Sicilian: Unusual Lines.} a5 {[%emt 0:00:32]} 12. Nd2 {[%emt 0:07:53]} Nd7 {[%emt 0:03:56]} 13. a3 {[%emt 0:01:46] The position is equal.} Na6 {[%emt 0:00:10]} 14. Be2 {[%emt 0:06:01] [#]} Bg5 $146 {[%emt 0:04:40]} ({Predecessor:} 14... Bh4+ 15. g3 Bg5 16. Bf2 f5 17. Rb1 O-O 18. O-O Bxd2 19. Qxd2 a4 20. f4 e4 {½-½ (37) Stambulian,A (2453)-Shapar,S (2145) Krasnodar 2003}) 15. Bf2 {[%emt 0:01:14]} Nac5 {[%emt 0:01:19]} 16. Ne4 {[%emt 0:01:09]} Nxe4 {[%emt 0:01:58]} 17. fxe4 {[%emt 0:00:09]} a4 {[%emt 0:06:59]} 18. O-O {[%emt 0:01:47][%cal Oc4c5,Bh1f1,Bf1f3,Bf3b3][%mdl 32]} Qc7 {[%emt 0:00:49] Inhibits c5.} 19. Kh1 {[%emt 0:09:27][%cal Oc4c5]} Nc5 {[%emt 0:02:55]} 20. h4 {[%emt 0:02:09]} Bh6 {[%emt 0:02:10]} 21. Bxc5 {[%emt 0:00:54]} Qxc5 {[%emt 0:00:26]} 22. Rf3 {[%emt 0:02:39]} O-O {[%emt 0:01:44]} 23. Qg1 {[%emt 0:02:18]} Qd4 {[%emt 0:07:21]} 24. Qxd4 {[%emt 0:02:42]} exd4 {[%emt 0:00:02]} 25. b4 {[%emt 0:01:01]} axb3 {[%emt 0:02:42]} 26. Rxb3 {[%emt 0:00:08]} Ra7 {[%emt 0:02:38]} 27. g3 {[%emt 0:01:23]} Re8 {[%emt 0:02:30]} 28. Bd3 {[%emt 0:00:56]} Bd2 {[%emt 0:00:55]} 29. Rb6 {[%emt 0:01:35]} Bc3 {[%emt 0:05:30]} 30. Ra2 {[%emt 0:00:44]} f5 {[%emt 0:01:08]} 31. e5 {[%emt 0:02:07]} dxe5 {[%emt 0:01:56] ...e4 is the strong threat.} 32. Bxf5 {[%emt 0:00:13]} Ra6 $2 {[%emt 0:01:17] [#]} (32... e4 $15 {stays ahead.}) 33. Rxb7 $2 {[%emt 0:02:28]} (33. Be6+ $1 $18 Rxe6 34. Rxe6 Rxe6 35. dxe6) 33... e4 $11 {[%emt 0:00:01]} 34. Re2 {[%emt 0:01:04]} (34. Bd7 $5 {[%cal Rd7e8]} Rf8 35. Be6+ Kh8 36. Re2 $14) 34... e3 {[%emt 0:00:37]} ({Better is} 34... d3 $1 $11 35. Rxe4 Rxe4 36. Bxe4 d2) 35. c5 $36 {[%emt 0:00:30][%mdl 2048] Strongly threatening c6. White fights for an advantage.} Rf8 $2 {[%emt 0:00:13][%mdl 8192]} (35... g6 $14 36. Bc2 Rxa3) 36. Bd3 $18 {[%emt 0:00:28]} Raf6 {[%emt 0:00:14]} 37. d6 {[%emt 0:00:07]} Rf1+ {[%emt 0:00:08]} (37... Rc8 {was necessary.} 38. d7 Rd8) 38. Kg2 {[%emt 0:00:05] Hoping for c6.} Rd1 {[%emt 0:00:13]} 39. Bc4+ {[%emt 0:00:06]} Kh8 {[%emt 0:00:01]} 40. c6 {[%emt 0:00:26]} d3 {[%emt 0:00:20]} 41. Rxe3 {[%emt 0:00:05] Black must now prevent d7.} d2 {[%emt 0:00:10]} 42. Bb3 {[%emt 0:00:08]} ({Don't go for} 42. Rxc3 $2 {[#]} Rg1+ $3 {[%mdl 512]} 43. Kxg1 d1=Q+ 44. Kg2 Qd2+ 45. Kh3 Qxc3 $19) 42... Re1 {[%emt 0:00:05]} 43. Rxc3 {[%emt 0:00:04] Intending c7 and mate.} Re2+ {[%emt 0:00:11]} 44. Kh3 {[%emt 0:00:03] White mates.} h5 {[%emt 0:00:09]} 45. c7 {[%emt 0:00:12]} Re1 {[%emt 0:00:17]} 46. c8=Q {[%emt 0:00:12] Weighted Error Value: White=0.16 (very precise) /Black=0.53} 1-0

[Event "Israeli Team U18-ch 2022"]
[Site "Be'er Ya'akov"]
[Date "2022.08.16"]
[Round "6.9"]
[White "Kochavi, Dana"]
[Black "Sokolovsky, Yahli"]
[Result "0-1"]
[ECO "C95"]
[WhiteElo "1885"]
[BlackElo "2386"]
[Annotator "TA"]
[PlyCount "56"]
[EventDate "2022.08.14"]
[EventCountry "ISR"]
[SourceTitle "playchess.com"]
[Source "ChessBase"]
[SourceQuality "1"]
[TimeControl "3000+10"]

{[%evp 21,56,20,18,20,20,19,28,-8,-13,-21,-16,-7,-1,-23,-29,-47,-40,-112,-91,-106,-36,-114,-131,-218,-252,-255,-259,-418,-319,-475,-477,-864,-847,-833,-877,-862,-859]} 1. e4 {[%emt 0:00:02]} e5 {[%emt 0:00:03]} 2. Nf3 {[%emt 0:00:07]} Nc6 {[%emt 0:00:02]} 3. Bb5 {[%emt 0:00:08]} a6 {[%emt 0:00:04]} 4. Ba4 {[%emt 0:00:05]} Nf6 {[%emt 0:00:04]} 5. O-O {[%emt 0:00:08]} Be7 {[%emt 0:00:02]} 6. Re1 {[%emt 0:00:28]} b5 {[%emt 0:00:14]} 7. Bb3 {[%emt 0:00:11]} d6 {[%emt 0:02:22]} 8. c3 {[%emt 0:01:44]} O-O {[%emt 0:00:08]} 9. h3 {[%emt 0:00:10]} Nb8 {[%emt 0:00:26][%cal Bc6b8,Bb8d7,Bd7c5,Bc5e6,Be6f4][%mdl 32]} 10. d4 {[%emt 0:01:55]} Nbd7 {[%emt 0:00:06]} 11. Nbd2 {[%emt 0:01:17]} c5 {[%emt 0:00:09]} 12. Nf1 {[%emt 0:00:27] C95: Closed Ruy Lopez: Breyer Variation with 10 d4.} Re8 {[%emt 0:00:51]} 13. Ng3 {[%emt 0:02:47]} Bf8 {[%emt 0:00:22]} 14. dxc5 {[%emt 0:03:05] White has an edge.} Nxc5 {[%emt 0:05:03]} 15. Bc2 {[%emt 0:02:36]} Bb7 {[%emt 0:00:51]} 16. b4 {[%emt 0:00:35]} Ne6 {[%emt 0:04:27] [#]} 17. a4 $146 {[%emt 0:02:23]} ({Predecessor:} 17. Bb3 Rc8 18. Bd2 h6 19. Rc1 Nf4 20. Bc2 d5 21. a3 dxe4 22. Nxe4 N6d5 23. Bxf4 exf4 {0-1 (44) Palakollu,S (1654)-Krasnokutskaya,S (1813) Al Ain 2013}) 17... Qc7 {[%emt 0:01:48]} 18. Bb2 {[%emt 0:00:41]} Nf4 {[%emt 0:02:30]} 19. Nd2 {[%emt 0:07:48]} (19. Ne2 $15) 19... Rad8 {[%emt 0:05:34]} 20. Ne2 {[%emt 0:06:22]} N6h5 {[%emt 0:04:36] Black is much more active.} ({Better is} 20... d5 $17 {[%cal Rd5e4]} 21. Nxf4 exf4) 21. Nxf4 {[%emt 0:05:03]} (21. Ng3 $15 Nf6 22. Ne2) 21... Nxf4 $17 {[%emt 0:00:05]} 22. Kh2 {[%emt 0:02:08] [#]} (22. axb5 $17 {keeps fighting.} axb5 23. Qf3) 22... d5 $1 $19 {[%emt 0:02:58]} 23. Qb1 {[%emt 0:02:53]} d4 {[%emt 0:04:06]} 24. Ra3 {[%emt 0:02:13]} (24. Bc1) 24... a5 {[%emt 0:07:19]} 25. Ba1 {[%emt 0:00:45]} (25. axb5 $142 axb4 26. cxb4) 25... dxc3 {[%emt 0:01:27] Black is clearly winning.} 26. Bxc3 {[%emt 0:00:28]} (26. Rxc3 $142 Qb6 27. Nf3 Qxf2 28. Rg1 Bxb4 29. Rc7) 26... axb4 {[%emt 0:00:37]} 27. Bxb4 {[%emt 0:00:44]} Bxb4 {[%emt 0:00:14]} 28. Qxb4 {[%emt 0:00:01]} Qxc2 {[%emt 0:00:08] Weighted Error Value: White=0.70/Black=0.14 (very precise)} 0-1

[Event "Israeli Team U18-ch 2022"]
[Site "Be'er Ya'akov"]
[Date "2022.08.16"]
[Round "6.10"]
[White "Neiman, Maks"]
[Black "Shefer, Uri"]
[Result "1-0"]
[ECO "B06"]
[WhiteElo "2110"]
[BlackElo "1854"]
[Annotator "TA"]
[PlyCount "118"]
[EventDate "2022.08.14"]
[EventCountry "ISR"]
[SourceTitle "playchess.com"]
[Source "ChessBase"]
[SourceQuality "1"]
[TimeControl "3000+10"]

{[%evp 9,118,26,34,35,30,26,42,23,55,26,52,43,83,76,80,78,69,58,84,36,141,129,130,0,71,50,67,64,169,108,279,284,286,273,394,387,374,390,388,356,374,197,192,161,168,183,172,36,168,158,166,45,137,139,135,151,149,144,136,135,184,187,208,143,151,135,131,135,141,94,145,142,235,239,239,239,265,192,438,424,454,448,448,429,421,340,312,0,270,261,286,281,421,421,421,421,407,400,400,389,374,370,360,220,206,67,29985,29986,29986,0,29985]} 1. d4 {[%emt 0:00:03]} g6 {[%emt 0:00:04]} 2. h4 {[%emt 0:01:31]} h5 {[%emt 0:00:30]} 3. Nc3 {[%emt 0:00:47]} Bg7 {[%emt 0:00:34]} 4. e4 {[%emt 0:00:32]} d6 {[%emt 0:01:38]} 5. Be3 {[%emt 0:00:42]} a6 {[%emt 0:01:16]} 6. a4 {[%emt 0:00:46] B06: Modern Defence.} Nf6 {[%emt 0:01:44]} 7. f3 {[%emt 0:02:14]} Nbd7 {[%emt 0:03:24]} 8. Bc4 {[%emt 0:01:10] White is slightly better.} e5 {[%emt 0:02:49] [#]} 9. Nge2 $146 {[%emt 0:01:40]} ({Predecessor:} 9. Nh3 exd4 10. Bxd4 O-O 11. Ng5 Ne5 12. Bxe5 {1-0 (12) Grolleau,M (1804)-Flom,G (2483) Europe Echecs INT 2021}) 9... O-O {[%emt 0:04:25]} 10. Qd2 {[%emt 0:00:54]} Nb6 {[%emt 0:02:00]} 11. Bb3 {[%emt 0:00:53]} exd4 {[%emt 0:00:15]} 12. Nxd4 {[%emt 0:00:26]} d5 {[%emt 0:01:15]} 13. e5 {[%emt 0:12:32]} Nh7 {[%emt 0:02:22]} 14. O-O-O {[%emt 0:08:05]} (14. g4 $1 $16 {[%cal Rg4h5]}) 14... c5 {[%emt 0:02:42]} (14... Bxe5 $14 15. a5 Nc4 16. Bxc4 dxc4) 15. Nde2 $16 {[%emt 0:00:28][%csl LRc5,LRd5] White is more active.} d4 {[%emt 0:00:25] [#]} 16. Bh6 {[%emt 0:01:17]} ({White has to play} 16. Nxd4 $1 $16 {[%mdl 512] aiming for Nde2.} cxd4 (16... Bxe5 17. Nde2) 17. Qxd4) 16... Qe8 {[%emt 0:00:49]} (16... dxc3 $11 {remains equal.} 17. Bxf7+ (17. Qxd8 Bxh6+ 18. Kb1 Rxd8 $15) 17... Kxf7 18. Qf4+ Kg8 19. Rxd8 cxb2+ 20. Kxb2 Bxe5+ 21. Qxe5 Nc4+ 22. Kc1 Nxe5 23. Bxf8 Nxf8) 17. Ne4 {[%emt 0:02:01] Threatens to win with Bxg7.} Qxe5 {[%emt 0:04:17]} 18. Bf4 {[%emt 0:00:22]} Qf5 {[%emt 0:00:14]} (18... Qe8 $1 $14) 19. Bd6 {[%emt 0:04:02]} (19. g4 $18 hxg4 20. N2g3) 19... Re8 $2 {[%emt 0:12:45]} (19... c4 $16) 20. N2g3 $18 {[%emt 0:03:52][%mdl 64] Deflection} (20. Bxc5 $6 Rxe4 21. Bxb6 Re8 $18) (20. Nxc5 Qf6 21. Bg3 Qc6 $11) 20... Qd7 {[%emt 0:01:51]} 21. Bxc5 {[%emt 0:02:16]} Nxa4 {[%emt 0:03:34]} (21... Qc6 $142 22. a5 (22. Bxd4 Bxd4 23. Qxd4 Be6 $18) (22. Qf4 Be6 $14) 22... Nd5 23. Bxd4 Ndf6) 22. Bxd4 {[%emt 0:02:24]} Bxd4 {[%emt 0:01:09]} 23. Qxd4 {[%emt 0:00:08]} Qxd4 {[%emt 0:00:01]} 24. Rxd4 {[%emt 0:00:01]} b5 {[%emt 0:00:23] [#]} 25. Nd6 {[%emt 0:01:43]} (25. Bxf7+ $142 $1 {[%mdl 512]} Kxf7 26. Nd6+ Ke7 27. Nxe8 Kxe8 28. Re1+ Kf7 29. Rf4+ Bf5 30. Nxf5 gxf5 31. Rxf5+ Kg6 32. g4) 25... Rf8 {[%emt 0:00:43]} 26. Re1 {[%emt 0:01:15] Nxf7 is the strong threat.} Nc5 {[%emt 0:00:56]} 27. Bd5 {[%emt 0:01:41]} Ra7 {[%emt 0:00:17]} 28. Nge4 {[%emt 0:00:43] Prevents Nf6.} ({White should play} 28. b4 $1 $18 {[%cal Rb4c5]} Na4 29. Bb3) 28... Ne6 {[%emt 0:01:04]} (28... Nxe4 $14 29. Nxe4 (29. Bxe4 Nf6 $11) 29... Rd7) 29. Nxc8 {[%emt 0:00:15]} Rxc8 {[%emt 0:00:11]} 30. Rd2 {[%emt 0:00:13]} (30. Bxe6 $18 fxe6 31. Nd6) 30... Rd8 {[%emt 0:01:02]} (30... Nhf8 $14) 31. Bxe6 $16 {[%emt 0:00:10]} Rxd2 {[%emt 0:00:01]} 32. Bxf7+ {[%emt 0:00:02]} Kxf7 {[%emt 0:00:14]} 33. Kxd2 {[%emt 0:00:01][%mdl 4096] Endgame KRN-KRN} Rd7+ {[%emt 0:00:18]} 34. Kc3 {[%emt 0:00:01]} Rc7+ {[%emt 0:00:16] [#]} (34... Nf6 $16 {is a better defense.} 35. Ng5+ Kg7) 35. Kb3 $1 $18 {[%emt 0:00:04]} Rc6 {[%emt 0:00:01]} 36. Rd1 {[%emt 0:00:27] Black must now prevent Rd7+.} Ke7 {[%emt 0:00:14] Inhibits Rd7+.} 37. Nc3 {[%emt 0:00:22]} Nf6 {[%emt 0:00:24]} 38. Ne2 {[%emt 0:00:05]} Rc4 {[%emt 0:00:05]} 39. Rd4 {[%emt 0:00:03]} ({Better is} 39. Nd4) 39... Rc5 {[%emt 0:00:07]} (39... Rxd4 $142 40. Nxd4 Nd5) 40. Nf4 $16 {[%emt 0:00:24]} g5 {[%emt 0:00:17]} (40... Kf7 $16 {was called for.} 41. Rd6 a5) 41. hxg5 $18 {[%emt 0:00:13]} Rxg5 {[%emt 0:00:01] [#]} 42. Kb4 $1 {[%emt 0:00:06]} Nd7 {[%emt 0:00:15]} 43. Nd5+ {[%emt 0:00:10]} Kd8 $2 {[%emt 0:00:01]} (43... Ke6) 44. Nf6 {[%emt 0:00:11]} Rxg2 {[%emt 0:00:18]} 45. Rxd7+ {[%emt 0:00:11] KRN-KR} Kc8 {[%emt 0:00:01]} 46. Rh7 {[%emt 0:00:10]} Rxc2 {[%emt 0:00:03]} 47. Kb3 {[%emt 0:00:02]} Rf2 {[%emt 0:00:03]} 48. Kb4 $2 {[%emt 0:00:19]} (48. Nxh5 $18 {Strongly threatening Rf7.} Rxf3+ 49. Kb4) 48... Rxb2+ $2 {[%emt 0:00:04][%mdl 8192]} (48... Rc2 $1 $11 {and Black stays safe.}) 49. Ka5 {[%emt 0:00:08]} Rd2 {[%emt 0:00:24][%cal Ob5b4]} 50. Rxh5 {[%emt 0:00:11]} ({But not} 50. Nxh5 Rd5 51. Ng7 (51. Kxa6 Rf5 $16) 51... Kd7 $18) 50... Rd6 {[%emt 0:00:20]} (50... Kd8 {was worth a try.} 51. Rh7 Rd6) 51. Ne4 {[%emt 0:00:10]} Re6 {[%emt 0:00:13]} 52. Rh8+ {[%emt 0:00:09]} Kc7 {[%emt 0:00:03]} 53. Nc5 {[%emt 0:00:12]} Rf6 {[%emt 0:00:05]} 54. Nxa6+ {[%emt 0:00:09]} Kd6 {[%emt 0:00:17]} 55. Rh3 {[%emt 0:00:10]} Rf5 {[%emt 0:00:15]} 56. Nb4 {[%emt 0:00:10]} Kc5 {[%emt 0:00:07]} 57. Nc2 {[%emt 0:00:11]} (57. f4 $1 $18) 57... Kc6 $2 {[%emt 0:00:22][%mdl 8192]} (57... Rf4 $14 58. Rh5+ Kc4) 58. Nd4+ {[%emt 0:00:02]} Kc5 {[%emt 0:00:22]} 59. Nc2 $2 {[%emt 0:00:31]} (59. Nxf5 {mates} Kd5 60. Ne3+ Ke5 61. Rh4 b4 62. Kxb4 Kf6 63. Kc5 Ke7 64. Kc6) 59... Kd5 $2 {[%emt 0:00:10][%mdl 8192] Weighted Error Value: White=0.51/Black=0.61} (59... Kc6 $11 60. Nd4+ Kd6 61. Nxf5+ Ke6 62. Ne3 Ke5 63. Kxb5 Kd6 64. f4 Kd7) 1-0

[Event "Israeli Team U18-ch 2022"]
[Site "Be'er Ya'akov"]
[Date "2022.08.16"]
[Round "6.11"]
[White "Soybert, Ori"]
[Black "Borodety, Itamar"]
[Result "0-1"]
[ECO "B70"]
[WhiteElo "1753"]
[BlackElo "1939"]
[Annotator "NA RC"]
[PlyCount "52"]
[EventDate "2022.08.14"]
[EventCountry "ISR"]
[SourceTitle "playchess.com"]
[Source "ChessBase"]
[SourceQuality "1"]
[TimeControl "3000+10"]

{[%evp 17,50,-3,0,-1,-8,32767,32767,32767,0,32767,8,0,0,9,0,10,12,12,0,11,18,32767,5,0,0,0,0,0,-8,-12,-9,-16,-20,-197,-193]} 1. e4 {[%emt 0:00:02]} c5 {[%emt 0:00:25]} 2. Nf3 {[%emt 0:00:02]} d6 {[%emt 0:00:41]} 3. d4 {[%emt 0:00:04]} cxd4 {[%emt 0:00:05]} 4. Nxd4 {[%emt 0:00:01]} Nf6 {[%emt 0:00:10]} 5. Nc3 {[%emt 0:00:05]} g6 {[%emt 0:00:12]} 6. Bc4 {[%emt 0:01:53]} Bg7 {[%emt 0:00:38]} 7. O-O {[%emt 0:00:47]} O-O {[%emt 0:00:15]} 8. Bb3 {[%emt 0:01:46]} Nc6 {[%emt 0:00:22]} 9. Nde2 {[%emt 0:08:43]} Bd7 {[%emt 0:02:24]} 10. f3 {[%emt 0:01:21]} Na5 {[%emt 0:02:55]} 11. Be3 {[%emt 0:01:46]} b5 {[%emt 0:03:27]} 12. Qd2 {[%emt 0:04:20]} a6 {[%emt 0:40:36]} 13. Nf4 {[%emt 0:04:06]} Rc8 {[%emt 0:00:00]} 14. Ncd5 {[%emt 0:03:03]} Nxd5 {[%emt 0:00:00]} 15. Nxd5 {[%emt 0:00:26]} Nc4 {[%emt 0:00:00]} (15... Bxb2 $2 16. Bb6 Qe8 17. Bxa5 $18) 16. Bxc4 {[%emt 0:00:08]} Rxc4 {[%emt 0:00:00]} 17. Bb6 {[%emt 0:03:42]} Qe8 {[%emt 0:00:00]} 18. c3 {[%emt 0:00:30]} Be6 {[%emt 0:00:00]} 19. Rfd1 {[%emt 0:02:38]} Qd7 {[%emt 0:00:00]} 20. Be3 {[%emt 0:01:42]} Bxd5 {[%emt 0:00:00]} 21. Qxd5 {[%emt 0:00:26]} Qc7 {[%emt 0:00:00]} 22. a3 {[%emt 0:02:51]} Rc8 {[%emt 0:00:00]} 23. Rd2 {[%emt 0:02:22]} Qb8 {[%emt 0:00:00]} 24. Rad1 {[%emt 0:08:35]} a5 {[%emt 0:00:00]} 25. Bd4 $2 {[%emt 0:00:48] [#]} (25. g3 $1 $11) 25... Bh6 $19 {[%emt 0:00:00]} 26. Re2 {[%emt 0:01:39]} e6 {[%emt 0:00:00]} 0-1

[Event "Israeli Team U18-ch 2022"]
[Site "Be'er Ya'akov"]
[Date "2022.08.16"]
[Round "6.12"]
[White "Ratner, Krystyna"]
[Black "Bercovici, Yaniv"]
[Result "1-0"]
[ECO "E11"]
[WhiteElo "1553"]
[BlackElo "1548"]
[Annotator "NA RC"]
[PlyCount "158"]
[EventDate "2022.08.14"]
[EventCountry "ISR"]
[SourceTitle "playchess.com"]
[Source "ChessBase"]
[SourceQuality "1"]
[TimeControl "3000+10"]

1. d4 {[%emt 0:00:04]} Nf6 {[%emt 0:00:07]} 2. Nf3 {[%emt 0:00:05]} e6 {[%emt 0:00:11]} 3. c4 {[%emt 0:00:20]} Bb4+ {[%emt 0:00:14]} 4. Bd2 {[%emt 0:00:06]} Qe7 {[%emt 0:00:05]} 5. g3 {[%emt 0:00:14]} Bxd2+ {[%emt 0:00:11]} 6. Nbxd2 {[%emt 0:02:13]} d6 {[%emt 0:00:10]} 7. Bg2 {[%emt 0:00:10]} e5 {[%emt 0:00:05]} 8. e3 {[%emt 0:05:32]} O-O {[%emt 0:03:05]} 9. O-O {[%emt 0:00:10]} a5 {[%emt 0:04:41]} 10. Rc1 {[%emt 0:04:07]} Nc6 {[%emt 0:03:47]} 11. a3 {[%emt 0:05:26]} a4 {[%emt 0:01:53]} 12. Nb1 {[%emt 0:00:38]} Nd7 {[%emt 0:08:57]} 13. Nc3 {[%emt 0:00:58]} Nb6 {[%emt 0:00:17]} 14. Nd5 {[%emt 0:03:07]} Nxd5 {[%emt 0:03:56]} 15. cxd5 {[%emt 0:02:09]} Nb8 {[%emt 0:01:24]} 16. Qc2 {[%emt 0:10:13]} c6 {[%emt 0:03:37]} 17. Rfd1 {[%emt 0:00:38]} Bg4 {[%emt 0:01:42]} 18. h3 {[%emt 0:01:13]} Bh5 {[%emt 0:01:13]} 19. dxe5 {[%emt 0:02:07]} dxe5 {[%emt 0:00:48]} 20. Qf5 {[%emt 0:03:30]} g6 {[%emt 0:01:20]} 21. d6 {[%emt 0:02:42]} Qe8 {[%emt 0:06:34]} 22. Qe4 {[%emt 0:02:19]} Bxf3 {[%emt 0:01:44]} 23. Bxf3 {[%emt 0:00:20]} Nd7 {[%emt 0:00:05]} 24. Qb4 {[%emt 0:00:59]} c5 {[%emt 0:03:13]} 25. Qxb7 {[%emt 0:00:28]} Rb8 {[%emt 0:00:02]} 26. Qc7 {[%emt 0:00:22]} e4 {[%emt 0:00:52]} 27. Bg4 {[%emt 0:00:26]} f5 {[%emt 0:00:09]} 28. Be2 {[%emt 0:00:01]} Rxb2 {[%emt 0:00:04]} 29. Bc4+ {[%emt 0:00:02]} Kh8 {[%emt 0:00:07]} 30. Qa5 {[%emt 0:00:22]} Qe5 {[%emt 0:00:56]} 31. Bb5 {[%emt 0:00:27]} c4 {[%emt 0:00:15]} 32. Rb1 {[%emt 0:00:38]} Rxb1 {[%emt 0:00:32]} 33. Rxb1 {[%emt 0:00:01]} Qxd6 {[%emt 0:00:02]} 34. Qc3+ {[%emt 0:00:21]} Ne5 {[%emt 0:01:21]} 35. Bxa4 {[%emt 0:00:41]} Qf6 {[%emt 0:00:03]} 36. Kg2 {[%emt 0:00:19]} Nf3 {[%emt 0:00:46]} 37. Qb4 {[%emt 0:00:45]} Rc8 {[%emt 0:00:39]} 38. Bd1 {[%emt 0:00:12]} Ne5 {[%emt 0:00:26]} 39. Qc3 {[%emt 0:00:13]} Rd8 {[%emt 0:00:24]} 40. Be2 {[%emt 0:00:12]} Kg7 {[%emt 0:00:16]} 41. Rb7+ {[%emt 0:00:12]} Kh6 {[%emt 0:00:01]} 42. Rb5 {[%emt 0:00:22]} Re8 {[%emt 0:00:13]} 43. Bxc4 {[%emt 0:00:16]} Qc6 {[%emt 0:00:20]} 44. Rxe5 {[%emt 0:00:32]} Qf6 {[%emt 0:00:01]} 45. Bb5 {[%emt 0:01:12]} Qxe5 {[%emt 0:00:03]} 46. Qxe5 {[%emt 0:00:02]} Rxe5 {[%emt 0:00:01]} 47. a4 {[%emt 0:00:01]} Re7 {[%emt 0:00:02]} 48. h4 {[%emt 0:00:01]} Kg7 {[%emt 0:00:01]} 49. f3 {[%emt 0:00:08]} exf3+ {[%emt 0:00:24]} 50. Kxf3 {[%emt 0:00:01]} Kf6 {[%emt 0:00:01]} 51. Bc6 {[%emt 0:00:08]} Re6 {[%emt 0:00:10]} 52. Bd5 {[%emt 0:00:08]} Ra6 {[%emt 0:00:04]} 53. Bb3 {[%emt 0:00:02]} Ke5 {[%emt 0:00:10]} 54. Bc2 {[%emt 0:00:04]} Ra5 {[%emt 0:00:22]} 55. Bb3 {[%emt 0:00:05]} Kd6 {[%emt 0:00:11]} 56. e4 {[%emt 0:00:15]} Rc5 {[%emt 0:00:35]} 57. Kf4 {[%emt 0:00:20]} fxe4 {[%emt 0:00:08]} 58. Kxe4 {[%emt 0:00:02]} Rc3 {[%emt 0:00:06]} 59. Bg8 {[%emt 0:00:02]} h6 {[%emt 0:00:37]} 60. Kf4 {[%emt 0:00:18]} Ra3 {[%emt 0:00:10]} 61. Bf7 {[%emt 0:00:54]} Rxa4+ {[%emt 0:00:02]} 62. Kf3 {[%emt 0:00:00]} Ra3+ {[%emt 0:00:04]} 63. Kg4 {[%emt 0:00:01]} Ra4+ {[%emt 0:00:02]} 64. Kf3 {[%emt 0:00:02]} g5 {[%emt 0:00:05]} 65. hxg5 {[%emt 0:00:04]} hxg5 {[%emt 0:00:02]} 66. g4 {[%emt 0:00:22]} Ke5 {[%emt 0:00:05]} 67. Be8 {[%emt 0:00:04]} Ra3+ {[%emt 0:00:02]} 68. Kg2 {[%emt 0:00:03]} Ra2+ {[%emt 0:00:31]} 69. Kf3 {[%emt 0:00:03]} Ra3+ {[%emt 0:00:01]} 70. Kg2 {[%emt 0:00:01]} Kf4 {[%emt 0:00:18]} 71. Bd7 {[%emt 0:01:25]} Rg3+ {[%emt 0:00:32]} 72. Kf2 {[%emt 0:00:00]} Ra3 {[%emt 0:00:16]} 73. Be6 {[%emt 0:00:00]} Rc3 {[%emt 0:00:05]} 74. Kg2 {[%emt 0:00:00]} Rc2+ {[%emt 0:00:02]} 75. Kg1 {[%emt 0:00:00]} Kg3 {[%emt 0:00:22]} 76. Kf1 {[%emt 0:00:00]} Rb2 {[%emt 0:00:08]} 77. Bd7 {[%emt 0:00:00]} Kf3 {[%emt 0:00:17]} 78. Kg1 {[%emt 0:00:00]} Rd2 {[%emt 0:00:10]} 79. Bf5 {[%emt 0:00:00]} Rf2 {[%emt 0:00:23]} 1-0

[Event "Israeli Team U18-ch 2022"]
[Site "Be'er Ya'akov"]
[Date "2022.08.16"]
[Round "6.13"]
[White "Sobel, Ido"]
[Black "Levi, Yaniv"]
[Result "1-0"]
[ECO "C50"]
[WhiteElo "1870"]
[BlackElo "1499"]
[Annotator "NA RC"]
[PlyCount "45"]
[EventDate "2022.08.14"]
[EventCountry "ISR"]
[SourceTitle "playchess.com"]
[Source "ChessBase"]
[SourceQuality "1"]
[TimeControl "3000+10"]

1. e4 {[%emt 0:11:21]} e5 {[%emt 0:00:39]} 2. Bc4 {[%emt 0:00:04]} Nf6 {[%emt 0:00:18]} 3. d3 {[%emt 0:00:03]} d5 {[%emt 0:00:47]} 4. exd5 {[%emt 0:00:05]} Nxd5 {[%emt 0:00:10]} 5. Nf3 {[%emt 0:00:10]} Nc6 {[%emt 0:00:10]} 6. h3 {[%emt 0:00:55]} h6 {[%emt 0:00:37]} 7. O-O {[%emt 0:00:10]} Bc5 $16 {[%emt 0:00:00] [#]} (7... Nb6 $14) 8. Re1 $1 {[%emt 0:38:42]} O-O {[%emt 0:02:22]} 9. Nxe5 {[%emt 0:00:00]} Nxe5 {[%emt 0:00:01]} 10. Rxe5 {[%emt 0:00:20]} Bxf2+ {[%emt 0:00:01]} 11. Kxf2 {[%emt 0:00:00]} Nb6 {[%emt 0:00:13]} (11... Qh4+ $142 12. Kf1 (12. Ke2 Bg4+ 13. hxg4 Qxg4+ 14. Ke1 Qh4+ 15. Ke2 Qg4+ 16. Ke1 Qh4+ 17. Ke2 Qg4+ $11) 12... Qf6+ 13. Qf3 Qxe5) 12. Re4 {[%emt 0:00:00]} Bf5 {[%emt 0:00:15]} 13. Rf4 {[%emt 0:00:00]} Qd7 {[%emt 0:03:09]} 14. Qf3 {[%emt 0:00:00]} Nxc4 {[%emt 0:00:50]} 15. Rxc4 {[%emt 0:00:00]} g5 {[%emt 0:00:05]} 16. Nc3 {[%emt 0:00:00]} b5 {[%emt 0:00:26]} 17. Rc5 {[%emt 0:00:00]} Be6 {[%emt 0:00:07]} 18. Bxg5 {[%emt 0:00:00]} Kh7 {[%emt 0:03:28]} 19. Ne4 {[%emt 0:00:00]} Qd4+ {[%emt 0:00:35]} 20. Be3 {[%emt 0:00:00]} Qxb2 {[%emt 0:00:04]} 21. Nf6+ {[%emt 0:00:00]} Kh8 {[%emt 0:00:50] [#]} 22. Qf4 $1 {[%emt 0:00:00]} Bf5 {[%emt 0:00:59]} 23. Qxh6+ {[%emt 0:00:00]} 1-0